[Event "*** Titled Tuesday Blitz"]
[Site "Chess.com"]
[Date "2019.04.02"]
[Round "6"]
[White "Firouzja2003"]
[Black "Bryakin_Mikhail"]
[Result "0-1"]
[WhiteElo "3064"]
[BlackElo "2760"]
[TimeControl "180+2"]
[EndTime "15:24:17 PDT"]
[Termination "Bryakin_Mikhail won on time"]

1. e4 {[%clk 0:03:01.9]} 1... c6 {[%clk 0:02:59.6]} 2. d4 {[%clk 0:03:02.4]}
2... d5 {[%clk 0:03:00.9]} 3. e5 {[%clk 0:03:04.3]} 3... Bf5 {[%clk 0:03:01.4]}
4. Nf3 {[%clk 0:03:05.8]} 4... e6 {[%clk 0:03:02.6]} 5. Be2 {[%clk 0:03:07.7]}
5... Nd7 {[%clk 0:03:02.8]} 6. O-O {[%clk 0:03:08.7]} 6... Bg6 {[%clk
0:03:02.7]} 7. Nbd2 {[%clk 0:03:09.6]} 7... Nh6 {[%clk 0:03:04.2]} 8. c3 {[%clk
0:03:10.6]} 8... Nf5 {[%clk 0:03:05]} 9. Re1 {[%clk 0:03:10.9]} 9... h5 {[%clk
0:03:06.3]} 10. Nf1 {[%clk 0:03:11.9]} 10... h4 {[%clk 0:03:04.9]} 11. h3 {[%clk
0:03:01]} 11... Be7 {[%clk 0:03:04]} 12. N1h2 {[%clk 0:03:02.1]} 12... Bh5
{[%clk 0:02:53.4]} 13. Ng4 {[%clk 0:02:50.9]} 13... Rc8 {[%clk 0:02:43.6]} 14.
Bd3 {[%clk 0:02:48.9]} 14... Bg6 {[%clk 0:02:37]} 15. b4 {[%clk 0:02:46.3]}
15... b6 {[%clk 0:02:31.5]} 16. Bf4 {[%clk 0:02:39.8]} 16... Kf8 {[%clk
0:02:30.4]} 17. Qd2 {[%clk 0:02:39.9]} 17... c5 {[%clk 0:02:28.6]} 18. bxc5
{[%clk 0:02:33.7]} 18... bxc5 {[%clk 0:02:29.6]} 19. Rab1 {[%clk 0:02:35.6]}
19... Nb6 {[%clk 0:02:20.9]} 20. Bg5 {[%clk 0:02:36.2]} 20... cxd4 {[%clk
0:02:06.4]} 21. cxd4 {[%clk 0:02:35.1]} 21... Nc4 {[%clk 0:02:05.7]} 22. Qf4
{[%clk 0:02:35.1]} 22... Rh5 {[%clk 0:01:41.3]} 23. Bxe7+ {[%clk 0:02:32.3]}
23... Nxe7 {[%clk 0:01:31.5]} 24. Bxg6 {[%clk 0:02:22.9]} 24... Nxg6 {[%clk
0:01:33.4]} 25. Qc1 {[%clk 0:02:24.5]} 25... Qe7 {[%clk 0:01:18.2]} 26. Re2
{[%clk 0:02:13.9]} 26... Kg8 {[%clk 0:01:12.6]} 27. Rc2 {[%clk 0:02:14.6]} 27...
Rd8 {[%clk 0:01:03.5]} 28. Ne3 {[%clk 0:01:58.1]} 28... Nxe3 {[%clk 0:01:00.5]}
29. fxe3 {[%clk 0:01:57.4]} 29... Rf5 {[%clk 0:00:58.5]} 30. Rc7 {[%clk
0:01:58.2]} 30... Rd7 {[%clk 0:00:56.3]} 31. Rb8+ {[%clk 0:01:58.5]} 31... Kh7
{[%clk 0:00:57.1]} 32. Rcc8 {[%clk 0:01:59.7]} 32... Rb7 {[%clk 0:00:51.8]} 33.
Ra8 {[%clk 0:01:52.1]} 33... Rxf3 {[%clk 0:00:46.9]} 34. gxf3 {[%clk 0:01:31.2]}
34... Qg5+ {[%clk 0:00:47.2]} 35. Kf2 {[%clk 0:01:32.1]} 35... Qg3+ {[%clk
0:00:46.6]} 36. Ke2 {[%clk 0:01:33.4]} 36... Qg2+ {[%clk 0:00:42.4]} 37. Kd3
{[%clk 0:01:34.5]} 37... Qxf3 {[%clk 0:00:37.2]} 38. Kc3 {[%clk 0:01:30.7]}
38... Qxh3 {[%clk 0:00:18.8]} 39. Rab8 {[%clk 0:01:31.6]} 39... Rxb8 {[%clk
0:00:16.8]} 40. Rxb8 {[%clk 0:01:33.5]} 40... Qf3 {[%clk 0:00:17.7]} 41. Rb2
{[%clk 0:01:31.6]} 41... Nf4 {[%clk 0:00:18.7]} 42. Qe1 {[%clk 0:01:29.7]} 42...
Ng2 {[%clk 0:00:14.9]} 43. Qb1+ {[%clk 0:00:58.5]} 43... Kh6 {[%clk 0:00:11.1]}
44. Kb4 {[%clk 0:00:55.6]} 44... Nxe3 {[%clk 0:00:08.3]} 45. Qc1 {[%clk
0:00:47.7]} 45... Qf4 {[%clk 0:00:04.9]} 46. Kc5 {[%clk 0:00:48.7]} 46... Ng2
{[%clk 0:00:03.8]} 47. Qh1 {[%clk 0:00:38.5]} 47... Ne3 {[%clk 0:00:04.6]} 48.
Qc1 {[%clk 0:00:39.5]} 48... Ng2 {[%clk 0:00:05.4]} 49. Qh1 {[%clk 0:00:29.4]}
49... Ne3 {[%clk 0:00:06.5]} 50. Rb8 {[%clk 0:00:25.6]} 50... Nf5 {[%clk
0:00:07.1]} 51. Qg1 {[%clk 0:00:27]} 51... Kh7 {[%clk 0:00:07.7]} 52. Rb3 {[%clk
0:00:24.8]} 52... g5 {[%clk 0:00:08.5]} 53. Rb1 {[%clk 0:00:18]} 53... g4 {[%clk
0:00:09.6]} 54. Rf1 {[%clk 0:00:19]} 54... Qe4 {[%clk 0:00:09.7]} 55. Kc6 {[%clk
0:00:18]} 55... g3 {[%clk 0:00:10.2]} 56. Rb1 {[%clk 0:00:10.1]} 56... Nxd4+
{[%clk 0:00:10.4]} 57. Kd7 {[%clk 0:00:11.1]} 57... Nf5 {[%clk 0:00:11.8]} 58.
Qd1 {[%clk 0:00:11.7]} 58... Kg6 {[%clk 0:00:12.3]} 59. Rb8 {[%clk 0:00:12.6]}
59... g2 {[%clk 0:00:10.6]} 60. Rg8+ {[%clk 0:00:13]} 60... Ng7 {[%clk 0:00:12]}
61. Qg1 {[%clk 0:00:04.5]} 61... h3 {[%clk 0:00:12.9]} 62. Qh2 {[%clk
0:00:05.5]} 62... Qg4 {[%clk 0:00:13.8]} 63. Qg1 {[%clk 0:00:04.3]} 63... Qg3
{[%clk 0:00:14.7]} 64. Qb1+ {[%clk 0:00:05]} 64... Kh6 {[%clk 0:00:10.2]} 65.
Rh8+ {[%clk 0:00:06]} 65... Kg5 {[%clk 0:00:11.6]} 66. Rg8 {[%clk 0:00:05.8]}
66... Qxe5 {[%clk 0:00:11.6]} 67. Qh7 {[%clk 0:00:05.1]} 67... Kf4 {[%clk
0:00:12.1]} 68. Rxg7 {[%clk 0:00:05.2]} 68... Qxg7 {[%clk 0:00:08.9]} 69. Qxg7
{[%clk 0:00:06.1]} 69... Kf3 {[%clk 0:00:10.8]} 70. Qxf7+ {[%clk 0:00:07.2]}
70... Kg3 {[%clk 0:00:10.7]} 71. Qg6+ {[%clk 0:00:08.2]} 71... Kh2 {[%clk
0:00:11.5]} 72. Qc2 {[%clk 0:00:08.4]} 72... Kh1 {[%clk 0:00:12.4]} 73. Qd3
{[%clk 0:00:08.8]} 73... g1=Q {[%clk 0:00:07.6]} 74. Qxh3+ {[%clk 0:00:09.9]}
74... Qh2 {[%clk 0:00:09.1]} 75. Qf1+ {[%clk 0:00:10.8]} 75... Qg1 {[%clk
0:00:10.3]} 76. Qh3+ {[%clk 0:00:11.5]} 76... Qh2 {[%clk 0:00:11.7]} 77. Qf3+
{[%clk 0:00:07.7]} 77... Qg2 {[%clk 0:00:12.8]} 78. Qd1+ {[%clk 0:00:08.6]}
78... Qg1 {[%clk 0:00:12.2]} 79. Qe2 {[%clk 0:00:03.6]} 79... Qg6 {[%clk
0:00:07.3]} 80. Qf1+ {[%clk 0:00:04.1]} 80... Kh2 {[%clk 0:00:07.4]} 81. Kd6
{[%clk 0:00:03.8]} 81... Qe4 {[%clk 0:00:06.9]} 82. Qf2+ {[%clk 0:00:04.7]}
82... Kh3 {[%clk 0:00:08]} 83. Qxa7 {[%clk 0:00:05.9]} 83... d4 {[%clk
0:00:09.1]} 84. Qh7+ {[%clk 0:00:04.9]} 84... Qxh7 {[%clk 0:00:09.8]} 0-1

[Event "*** Titled Tuesday Blitz"]
[Site "Chess.com"]
[Date "2019.04.02"]
[Round "6"]
[White "Cayse"]
[Black "emperor87"]
[Result "0-1"]
[WhiteElo "2647"]
[BlackElo "2717"]
[TimeControl "180+2"]
[EndTime "15:24:53 PDT"]
[Termination "emperor87 won by resignation"]

1. e4 {[%clk 0:03:01.9]} 1... c5 {[%clk 0:02:59.7]} 2. Nf3 {[%clk 0:03:02.6]}
2... d6 {[%clk 0:03:01]} 3. Bb5+ {[%clk 0:03:03.1]} 3... Nc6 {[%clk 0:03:00.8]}
4. O-O {[%clk 0:02:57.6]} 4... e6 {[%clk 0:02:56.7]} 5. d4 {[%clk 0:02:51.1]}
5... cxd4 {[%clk 0:02:56.5]} 6. Nxd4 {[%clk 0:02:51.7]} 6... Bd7 {[%clk
0:02:57.7]} 7. c4 {[%clk 0:02:51.2]} 7... Nxd4 {[%clk 0:02:56.1]} 8. Bxd7+
{[%clk 0:02:51.3]} 8... Qxd7 {[%clk 0:02:58]} 9. Qxd4 {[%clk 0:02:52.6]} 9...
Nf6 {[%clk 0:02:57.2]} 10. b3 {[%clk 0:02:50.5]} 10... Be7 {[%clk 0:02:55.8]}
11. Bb2 {[%clk 0:02:50.8]} 11... e5 {[%clk 0:02:50.8]} 12. Qd3 {[%clk
0:02:49.8]} 12... Bd8 {[%clk 0:02:42]} 13. Nc3 {[%clk 0:02:40.3]} 13... Bb6
{[%clk 0:02:42.2]} 14. Rad1 {[%clk 0:02:26.1]} 14... Ke7 {[%clk 0:02:32.2]} 15.
Ba3 {[%clk 0:02:14.6]} 15... Rhd8 {[%clk 0:02:29.2]} 16. Qg3 {[%clk 0:02:15.2]}
16... Qe6 {[%clk 0:02:23.2]} 17. Nb5 {[%clk 0:01:49.1]} 17... Ne8 {[%clk
0:02:17]} 18. Qh4+ {[%clk 0:01:49.4]} 18... f6 {[%clk 0:02:11.9]} 19. Qxh7
{[%clk 0:01:48.9]} 19... a6 {[%clk 0:02:12.1]} 20. Nxd6 {[%clk 0:01:44.8]} 20...
Rxd6 {[%clk 0:02:04.5]} 21. Rxd6 {[%clk 0:01:35.4]} 21... Nxd6 {[%clk
0:02:00.5]} 22. Qxg7+ {[%clk 0:01:36.1]} 22... Kd8 {[%clk 0:01:59]} 23. Rd1
{[%clk 0:01:32.6]} 23... Bd4 {[%clk 0:01:59.6]} 24. c5 {[%clk 0:00:58.1]} 24...
Nf7 {[%clk 0:01:11.6]} 25. Qg8+ {[%clk 0:00:37.7]} 25... Qe8 {[%clk 0:00:47.2]}
26. Qg6 {[%clk 0:00:38.5]} 26... Qe6 {[%clk 0:00:44]} 27. Qg8+ {[%clk
0:00:39.4]} 27... Qe8 {[%clk 0:00:43.7]} 28. Qg7 {[%clk 0:00:36.1]} 28... Qe6
{[%clk 0:00:43.1]} 29. Bb2 {[%clk 0:00:33.1]} 29... Ke7 {[%clk 0:00:40]} 30.
Bxd4 {[%clk 0:00:31.9]} 30... Rd8 {[%clk 0:00:40.8]} 31. h4 {[%clk 0:00:12]}
31... Rxd4 {[%clk 0:00:40]} 32. Re1 {[%clk 0:00:13.5]} 32... Rd2 {[%clk
0:00:35]} 33. h5 {[%clk 0:00:14.2]} 33... Qc8 {[%clk 0:00:35.6]} 34. h6 {[%clk
0:00:14.4]} 34... Qxc5 {[%clk 0:00:36.3]} 35. Rf1 {[%clk 0:00:11.3]} 35... Qc8
{[%clk 0:00:30.3]} 36. h7 {[%clk 0:00:09.4]} 36... Qh8 {[%clk 0:00:31]} 37. Qg6
{[%clk 0:00:08.8]} 37... Ng5 {[%clk 0:00:31.5]} 38. Rc1 {[%clk 0:00:08.7]} 38...
Qxh7 {[%clk 0:00:30.7]} 39. Rc7+ {[%clk 0:00:09.5]} 39... Rd7 {[%clk 0:00:31.4]}
40. Rxd7+ {[%clk 0:00:10.7]} 40... Kxd7 {[%clk 0:00:33.3]} 41. Qxf6 {[%clk
0:00:12.3]} 41... Qe7 {[%clk 0:00:32.8]} 42. Qf5+ {[%clk 0:00:13]} 42... Kd6
{[%clk 0:00:32.3]} 43. g3 {[%clk 0:00:13.8]} 43... Ne6 {[%clk 0:00:32.8]} 44.
Kg2 {[%clk 0:00:13.5]} 44... Qg5 {[%clk 0:00:30.6]} 45. Qh7 {[%clk 0:00:13.1]}
45... Qg4 {[%clk 0:00:29.7]} 46. Kf1 {[%clk 0:00:05.9]} 46... Nc5 {[%clk
0:00:23.7]} 47. Qh6+ {[%clk 0:00:05.3]} 47... Kc7 {[%clk 0:00:24.5]} 48. Qh7+
{[%clk 0:00:04.9]} 48... Kb6 {[%clk 0:00:23.4]} 49. Qh6+ {[%clk 0:00:06.2]}
49... Kc7 {[%clk 0:00:20.2]} 50. Qh7+ {[%clk 0:00:07]} 50... Kc6 {[%clk
0:00:20.8]} 51. Qh6+ {[%clk 0:00:08.1]} 51... Kc7 {[%clk 0:00:20.1]} 52. Qh7+
{[%clk 0:00:09.4]} 52... Kb8 {[%clk 0:00:21]} 53. Qh8+ {[%clk 0:00:10.1]} 53...
Ka7 {[%clk 0:00:22]} 54. Qxe5 {[%clk 0:00:11]} 54... Nxe4 {[%clk 0:00:22.2]} 55.
Qd4+ {[%clk 0:00:11.9]} 55... b6 {[%clk 0:00:23.3]} 56. Kg2 {[%clk 0:00:12.6]}
56... Qf5 {[%clk 0:00:22.4]} 57. Qe3 {[%clk 0:00:12.6]} 57... Nc5 {[%clk
0:00:22.3]} 58. Qe7+ {[%clk 0:00:11.8]} 58... Nd7 {[%clk 0:00:23.1]} 59. f4
{[%clk 0:00:10.4]} 59... a5 {[%clk 0:00:22.9]} 60. Kf3 {[%clk 0:00:10.5]} 60...
Kb8 {[%clk 0:00:23.7]} 61. Qe8+ {[%clk 0:00:10.8]} 61... Kc7 {[%clk 0:00:24.4]}
62. Qe4 {[%clk 0:00:11.6]} 62... Qh5+ {[%clk 0:00:23.7]} 63. Kg2 {[%clk
0:00:12.5]} 63... Qc5 {[%clk 0:00:23.5]} 64. g4 {[%clk 0:00:13.1]} 64... Nf6
{[%clk 0:00:20.5]} 65. Qf3 {[%clk 0:00:13.3]} 65... Qd4 {[%clk 0:00:20.1]} 66.
g5 {[%clk 0:00:13.8]} 66... Nd5 {[%clk 0:00:21]} 67. Kg3 {[%clk 0:00:14.4]}
67... Ne7 {[%clk 0:00:21.8]} 68. Kg4 {[%clk 0:00:14.8]} 68... Ng6 {[%clk
0:00:18.9]} 69. Qg3 {[%clk 0:00:11.8]} 69... Kd7 {[%clk 0:00:13.3]} 70. Qh2
{[%clk 0:00:12.3]} 70... Ke6 {[%clk 0:00:11.7]} 71. Qe2+ {[%clk 0:00:12.3]}
71... Kd6 {[%clk 0:00:12.7]} 72. Qf1 {[%clk 0:00:12.2]} 72... Ne5+ {[%clk
0:00:12.6]} 73. Kh5 {[%clk 0:00:11.2]} 73... Nd3 {[%clk 0:00:13.7]} 74. f5
{[%clk 0:00:11.1]} 74... Nf4+ {[%clk 0:00:14.5]} 75. Kg4 {[%clk 0:00:11.3]}
75... Ng6+ {[%clk 0:00:11]} 76. Kh5 {[%clk 0:00:12]} 76... Nf4+ {[%clk
0:00:11.3]} 77. Kg4 {[%clk 0:00:13.1]} 77... Nd5+ {[%clk 0:00:06.1]} 78. Kg3
{[%clk 0:00:13]} 78... Qe3+ {[%clk 0:00:07.2]} 79. Kh4 {[%clk 0:00:13.9]} 79...
Qe4+ {[%clk 0:00:05.4]} 80. Kg3 {[%clk 0:00:09.9]} 80... Qe5+ {[%clk 0:00:04.5]}
81. Kh3 {[%clk 0:00:08.1]} 81... Qe3+ {[%clk 0:00:04.1]} 82. Kh4 {[%clk
0:00:07.4]} 82... Qd4+ {[%clk 0:00:03.7]} 83. Kg3 {[%clk 0:00:06]} 83... Qe5+
{[%clk 0:00:03.9]} 84. Kh3 {[%clk 0:00:05]} 84... Qc3+ {[%clk 0:00:03]} 85. Kh4
{[%clk 0:00:05]} 85... Qd4+ {[%clk 0:00:04.6]} 86. Kh3 {[%clk 0:00:05.6]} 86...
Qc3+ {[%clk 0:00:06.2]} 87. Kh4 {[%clk 0:00:06.7]} 87... Qd4+ {[%clk 0:00:07.7]}
88. Kh3 {[%clk 0:00:06.8]} 88... Ne3 {[%clk 0:00:08.2]} 89. Qf3 {[%clk
0:00:06.8]} 89... Qh8+ {[%clk 0:00:08.5]} 90. Kg3 {[%clk 0:00:07.9]} 90... Qe5+
{[%clk 0:00:09]} 91. Kf2 {[%clk 0:00:08.1]} 91... Nxf5 {[%clk 0:00:09.5]} 92. g6
{[%clk 0:00:08.9]} 92... Qd4+ {[%clk 0:00:08.8]} 93. Kf1 {[%clk 0:00:09.7]}
93... Ke5 {[%clk 0:00:09.9]} 94. Qe2+ {[%clk 0:00:08.9]} 94... Kf6 {[%clk
0:00:09.7]} 95. Kg2 {[%clk 0:00:08.5]} 95... Kxg6 {[%clk 0:00:10.5]} 96. Qe6+
{[%clk 0:00:09.4]} 96... Kg5 {[%clk 0:00:11.4]} 97. Qg8+ {[%clk 0:00:09.5]}
97... Kf4 {[%clk 0:00:11.8]} 98. Qb8+ {[%clk 0:00:10.4]} 98... Ke4 {[%clk
0:00:12]} 99. Qb7+ {[%clk 0:00:11.7]} 99... Kd3 {[%clk 0:00:12.9]} 100. Kf3
{[%clk 0:00:12.6]} 100... Qe3+ {[%clk 0:00:12.6]} 101. Kg4 {[%clk 0:00:13.4]}
101... Qe4+ {[%clk 0:00:13.8]} 102. Qxe4+ {[%clk 0:00:13.5]} 102... Kxe4 {[%clk
0:00:15.7]} 0-1

[Event "*** Titled Tuesday Blitz"]
[Site "Chess.com"]
[Date "2019.04.02"]
[Round "7"]
[White "tteshan"]
[Black "melicg25"]
[Result "0-1"]
[WhiteElo "2197"]
[BlackElo "2307"]
[TimeControl "180+2"]
[EndTime "15:27:20 PDT"]
[Termination "melicg25 won by resignation"]

1. d4 {[%clk 0:03:01.9]} 1... Nf6 {[%clk 0:03:00.7]} 2. Nf3 {[%clk 0:03:01.9]}
2... g6 {[%clk 0:03:01.6]} 3. Bf4 {[%clk 0:02:59.4]} 3... Bg7 {[%clk 0:03:02.6]}
4. e3 {[%clk 0:03:00.5]} 4... O-O {[%clk 0:03:03.5]} 5. h4 {[%clk 0:03:01.9]}
5... d6 {[%clk 0:03:04.3]} 6. h5 {[%clk 0:03:01]} 6... Nxh5 {[%clk 0:03:04.6]}
7. Rxh5 {[%clk 0:03:02.5]} 7... gxh5 {[%clk 0:03:05.8]} 8. Bd3 {[%clk
0:03:03.5]} 8... Bg4 {[%clk 0:03:04]} 9. Nbd2 {[%clk 0:02:47.5]} 9... e5 {[%clk
0:03:04.6]} 10. dxe5 {[%clk 0:02:47.4]} 10... dxe5 {[%clk 0:02:46.4]} 11. Bh2
{[%clk 0:02:36.5]} 11... Nc6 {[%clk 0:02:47.3]} 12. c3 {[%clk 0:02:29.3]} 12...
Qxd3 {[%clk 0:02:46.5]} 0-1

[Event "*** Titled Tuesday Blitz"]
[Site "Chess.com"]
[Date "2019.04.02"]
[Round "7"]
[White "Gabix_94"]
[Black "lachesisQ"]
[Result "0-1"]
[WhiteElo "2590"]
[BlackElo "3011"]
[TimeControl "180+2"]
[EndTime "15:29:01 PDT"]
[Termination "lachesisQ won by checkmate"]

1. Nf3 {[%clk 0:02:52.2]} 1... c5 {[%clk 0:02:53.8]} 2. c4 {[%clk 0:02:14.5]}
2... Nc6 {[%clk 0:02:41.4]} 3. Nc3 {[%clk 0:02:14.6]} 3... Nf6 {[%clk
0:02:42.6]} 4. g3 {[%clk 0:02:14.5]} 4... d5 {[%clk 0:02:43.8]} 5. cxd5 {[%clk
0:02:15.7]} 5... Nxd5 {[%clk 0:02:45.7]} 6. Bg2 {[%clk 0:02:17.2]} 6... Nc7
{[%clk 0:02:47.2]} 7. O-O {[%clk 0:02:15.8]} 7... e5 {[%clk 0:02:48.4]} 8. a3
{[%clk 0:02:16.7]} 8... Rb8 {[%clk 0:02:45.3]} 9. d3 {[%clk 0:02:17.5]} 9... Be7
{[%clk 0:02:46.3]} 10. Be3 {[%clk 0:02:17.4]} 10... O-O {[%clk 0:02:46.7]} 11.
Nd2 {[%clk 0:02:12.3]} 11... Bd7 {[%clk 0:02:46.5]} 12. Nc4 {[%clk 0:02:11]}
12... b5 {[%clk 0:02:45.1]} 13. Bxc6 {[%clk 0:02:06.4]} 13... Bxc6 {[%clk
0:02:47]} 14. Nxe5 {[%clk 0:02:07.5]} 14... Ba8 {[%clk 0:02:48.7]} 15. Rc1
{[%clk 0:02:05.8]} 15... Ne6 {[%clk 0:02:41.1]} 16. Ne4 {[%clk 0:02:03.8]} 16...
f5 {[%clk 0:02:33.1]} 17. Nc3 {[%clk 0:01:44.1]} 17... f4 {[%clk 0:02:28.8]} 18.
gxf4 {[%clk 0:01:41.8]} 18... Nxf4 {[%clk 0:02:28.6]} 19. Qb3+ {[%clk
0:01:39.3]} 19... c4 {[%clk 0:02:29.7]} 20. dxc4 {[%clk 0:01:33.3]} 20... Nh3#
{[%clk 0:02:30.5]} 0-1

[Event "*** Titled Tuesday Blitz"]
[Site "Chess.com"]
[Date "2019.04.02"]
[Round "7"]
[White "Hunninn"]
[Black "Zavgorodniy_Serg"]
[Result "1-0"]
[WhiteElo "2623"]
[BlackElo "2473"]
[TimeControl "180+2"]
[EndTime "15:29:34 PDT"]
[Termination "Hunninn won by resignation"]

1. d4 {[%clk 0:03:01.5]} 1... Nf6 {[%clk 0:02:56.6]} 2. Nf3 {[%clk 0:03:02.1]}
2... d6 {[%clk 0:02:46.2]} 3. Bg5 {[%clk 0:03:03.3]} 3... Nbd7 {[%clk
0:02:44.1]} 4. Nbd2 {[%clk 0:03:04.3]} 4... h6 {[%clk 0:02:44.7]} 5. Bh4 {[%clk
0:03:04.6]} 5... g5 {[%clk 0:02:45.9]} 6. Bg3 {[%clk 0:03:06.2]} 6... Nh5 {[%clk
0:02:46.9]} 7. e3 {[%clk 0:03:07.8]} 7... Bg7 {[%clk 0:02:47.4]} 8. Bd3 {[%clk
0:03:06.9]} 8... c6 {[%clk 0:02:48.3]} 9. c3 {[%clk 0:03:07.8]} 9... Qc7 {[%clk
0:02:49.4]} 10. Nf1 {[%clk 0:03:03.4]} 10... Ndf6 {[%clk 0:02:49.5]} 11. h3
{[%clk 0:03:04.4]} 11... Nxg3 {[%clk 0:02:49.3]} 12. Nxg3 {[%clk 0:03:06.3]}
12... Bd7 {[%clk 0:02:49.1]} 13. Qa4 {[%clk 0:02:54]} 13... a5 {[%clk
0:02:39.9]} 14. e4 {[%clk 0:02:45.6]} 14... b5 {[%clk 0:02:20.8]} 15. Qc2 {[%clk
0:02:45.2]} 15... c5 {[%clk 0:01:47.2]} 16. Qe2 {[%clk 0:02:44.1]} 16... cxd4
{[%clk 0:01:38.4]} 17. cxd4 {[%clk 0:02:46]} 17... O-O {[%clk 0:01:34]} 18. O-O
{[%clk 0:02:38.5]} 18... Qb6 {[%clk 0:01:15.8]} 19. e5 {[%clk 0:02:38.8]} 19...
dxe5 {[%clk 0:01:14.9]} 20. dxe5 {[%clk 0:02:39.3]} 1-0

[Event "*** Titled Tuesday Blitz"]
[Site "Chess.com"]
[Date "2019.04.02"]
[Round "7"]
[White "sofaceindisguise"]
[Black "Tiqr777"]
[Result "1-0"]
[WhiteElo "2563"]
[BlackElo "2624"]
[TimeControl "180+2"]
[EndTime "15:29:39 PDT"]
[Termination "sofaceindisguise won by resignation"]

1. c4 {[%clk 0:03:01.4]} 1... g6 {[%clk 0:03:00.5]} 2. g3 {[%clk 0:03:02.5]}
2... Bg7 {[%clk 0:03:02.4]} 3. Bg2 {[%clk 0:03:04.4]} 3... d6 {[%clk 0:03:03.3]}
4. Nc3 {[%clk 0:03:05.7]} 4... Nf6 {[%clk 0:03:04.7]} 5. e3 {[%clk 0:03:07]}
5... O-O {[%clk 0:03:06]} 6. Nge2 {[%clk 0:03:08.3]} 6... e5 {[%clk 0:03:06.4]}
7. O-O {[%clk 0:03:09.7]} 7... Nc6 {[%clk 0:03:07.7]} 8. Rb1 {[%clk 0:03:10.4]}
8... h5 {[%clk 0:03:08.2]} 9. h3 {[%clk 0:03:08.3]} 9... a5 {[%clk 0:03:07.7]}
10. a3 {[%clk 0:03:08.3]} 10... Be6 {[%clk 0:03:06.6]} 11. Nd5 {[%clk
0:03:08.8]} 11... Qd7 {[%clk 0:03:01.8]} 12. Kh2 {[%clk 0:03:08.7]} 12... Rab8
{[%clk 0:02:57.2]} 13. b4 {[%clk 0:03:07.3]} 13... axb4 {[%clk 0:02:58.3]} 14.
axb4 {[%clk 0:03:09.2]} 14... Ne7 {[%clk 0:02:59.6]} 15. Nxf6+ {[%clk
0:03:03.6]} 15... Bxf6 {[%clk 0:03:00.2]} 16. c5 {[%clk 0:02:55.7]} 16... d5
{[%clk 0:02:51.7]} 17. d4 {[%clk 0:02:56.4]} 17... c6 {[%clk 0:02:48.2]} 18.
dxe5 {[%clk 0:02:55.5]} 18... Bxe5 {[%clk 0:02:49.2]} 19. Nf4 {[%clk 0:02:56.3]}
19... Bf5 {[%clk 0:02:46]} 20. Rb3 {[%clk 0:02:54.2]} 20... h4 {[%clk
0:02:44.7]} 21. g4 {[%clk 0:02:49.1]} 21... g5 {[%clk 0:02:44.3]} 22. gxf5
{[%clk 0:02:49.9]} 22... gxf4 {[%clk 0:02:45.1]} 23. exf4 {[%clk 0:02:50.8]}
23... Bf6 {[%clk 0:02:33.7]} 24. Qg4+ {[%clk 0:02:49.3]} 24... Kh8 {[%clk
0:02:34.8]} 25. Qh5+ {[%clk 0:02:50.2]} 25... Kg7 {[%clk 0:02:35.5]} 26. Bxd5
{[%clk 0:02:36.6]} 26... Ng6 {[%clk 0:02:21.8]} 27. fxg6 {[%clk 0:02:32.7]}
27... fxg6 {[%clk 0:02:14.1]} 28. Rg1 {[%clk 0:02:31.2]} 1-0

[Event "*** Titled Tuesday Blitz"]
[Site "Chess.com"]
[Date "2019.04.02"]
[Round "7"]
[White "albano87"]
[Black "julinha97"]
[Result "1-0"]
[WhiteElo "2326"]
[BlackElo "2193"]
[TimeControl "180+2"]
[EndTime "15:29:48 PDT"]
[Termination "albano87 won by resignation"]

1. e4 {[%clk 0:03:01.9]} 1... c5 {[%clk 0:03:00.6]} 2. Nf3 {[%clk 0:03:02.8]}
2... d6 {[%clk 0:03:01.5]} 3. d4 {[%clk 0:03:04.3]} 3... cxd4 {[%clk 0:03:03.4]}
4. Qxd4 {[%clk 0:03:05.9]} 4... a6 {[%clk 0:03:03.1]} 5. c4 {[%clk 0:03:06]}
5... Nc6 {[%clk 0:03:03.8]} 6. Qd2 {[%clk 0:03:07.6]} 6... Nf6 {[%clk
0:03:05.2]} 7. Nc3 {[%clk 0:03:08.5]} 7... g6 {[%clk 0:03:04.4]} 8. b3 {[%clk
0:03:10.1]} 8... Bg7 {[%clk 0:03:04.9]} 9. Bb2 {[%clk 0:03:11.5]} 9... O-O
{[%clk 0:03:06.5]} 10. Be2 {[%clk 0:03:13]} 10... Rb8 {[%clk 0:02:44.3]} 11. O-O
{[%clk 0:03:13.2]} 11... b5 {[%clk 0:02:45]} 12. cxb5 {[%clk 0:03:13.9]} 12...
axb5 {[%clk 0:02:46.9]} 13. Bxb5 {[%clk 0:03:12.6]} 13... Nxe4 {[%clk
0:02:46.1]} 14. Nxe4 {[%clk 0:03:13.3]} 14... Rxb5 {[%clk 0:02:47.1]} 15. Bxg7
{[%clk 0:03:13.1]} 15... Kxg7 {[%clk 0:02:49]} 16. Qc3+ {[%clk 0:03:08.7]} 16...
Ne5 {[%clk 0:02:49.5]} 17. a4 {[%clk 0:03:08.9]} 17... Rd5 {[%clk 0:02:40.5]}
18. Rfd1 {[%clk 0:02:47.1]} 18... Be6 {[%clk 0:02:18.6]} 19. Rxd5 {[%clk
0:02:43.9]} 19... Bxd5 {[%clk 0:02:20.5]} 20. Nxe5 {[%clk 0:02:44.6]} 20... dxe5
{[%clk 0:02:22.4]} 21. Qxe5+ {[%clk 0:02:44.1]} 21... f6 {[%clk 0:02:24]} 22.
Qd4 {[%clk 0:02:18.9]} 22... Bxb3 {[%clk 0:02:23.1]} 23. Qb4 {[%clk 0:02:20.5]}
23... Bd5 {[%clk 0:02:18]} 24. a5 {[%clk 0:02:16.7]} 24... Bxe4 {[%clk
0:02:16.7]} 25. Qxe4 {[%clk 0:02:16.9]} 25... Kf7 {[%clk 0:02:01.5]} 26. a6
{[%clk 0:02:16.3]} 26... Qa8 {[%clk 0:02:02.4]} 27. Qc4+ {[%clk 0:02:12.4]}
27... Kg7 {[%clk 0:02:00.2]} 28. a7 {[%clk 0:02:13.6]} 28... Rc8 {[%clk
0:02:00.7]} 29. Qxc8 {[%clk 0:02:11.8]} 1-0

[Event "*** Titled Tuesday Blitz"]
[Site "Chess.com"]
[Date "2019.04.02"]
[Round "7"]
[White "PaulfromSPb"]
[Black "gmjoey1"]
[Result "0-1"]
[WhiteElo "2639"]
[BlackElo "2520"]
[TimeControl "180+2"]
[EndTime "15:29:49 PDT"]
[Termination "gmjoey1 won by checkmate"]

1. e4 {[%clk 0:02:58.2]} 1... c6 {[%clk 0:02:59.6]} 2. d4 {[%clk 0:02:58.3]}
2... d5 {[%clk 0:03:00.1]} 3. Nd2 {[%clk 0:02:59.2]} 3... dxe4 {[%clk
0:03:00.3]} 4. Nxe4 {[%clk 0:03:00.4]} 4... Nf6 {[%clk 0:03:00.8]} 5. Nxf6+
{[%clk 0:03:00.2]} 5... exf6 {[%clk 0:03:02.7]} 6. c3 {[%clk 0:03:01.6]} 6...
Bd6 {[%clk 0:03:02.6]} 7. Bd3 {[%clk 0:03:02.6]} 7... O-O {[%clk 0:03:01]} 8.
Ne2 {[%clk 0:03:04.5]} 8... Re8 {[%clk 0:02:59.7]} 9. Qc2 {[%clk 0:03:05.2]}
9... h6 {[%clk 0:02:56.8]} 10. Be3 {[%clk 0:03:05.3]} 10... Nd7 {[%clk
0:02:46.4]} 11. O-O-O {[%clk 0:03:05.2]} 11... Nf8 {[%clk 0:02:44.2]} 12. Rdg1
{[%clk 0:03:04.5]} 12... b5 {[%clk 0:02:43.1]} 13. g4 {[%clk 0:03:04.7]} 13...
Be6 {[%clk 0:02:42.7]} 14. h4 {[%clk 0:03:04]} 14... Bd5 {[%clk 0:02:35.2]} 15.
Rh3 {[%clk 0:03:02.1]} 15... Qd7 {[%clk 0:02:28.2]} 16. Bf5 {[%clk 0:02:57.5]}
16... Be6 {[%clk 0:02:19.1]} 17. Rf3 {[%clk 0:02:58.2]} 17... Bh2 {[%clk
0:02:06]} 18. Rg2 {[%clk 0:02:55.6]} 18... Qd5 {[%clk 0:01:45.1]} 19. Be4 {[%clk
0:02:52.4]} 19... Qxa2 {[%clk 0:01:44.3]} 20. Rxh2 {[%clk 0:02:40.8]} 20... Bb3
{[%clk 0:01:43.6]} 21. Qb1 {[%clk 0:02:39.1]} 21... Rxe4 {[%clk 0:01:40.6]} 22.
Qxe4 {[%clk 0:02:27.1]} 22... Bd5 {[%clk 0:01:39.7]} 23. Qf5 {[%clk 0:02:22.5]}
23... Qa1+ {[%clk 0:01:38.2]} 24. Kc2 {[%clk 0:02:10.2]} 24... Bb3+ {[%clk
0:01:31.3]} 25. Kd2 {[%clk 0:02:08.4]} 25... Qd1# {[%clk 0:01:28.9]} 0-1